bitfinex/quotes_BTCUSD_20250110
["timestamp","ask_amount","ask_price","bid_price","bid_amount"]
[1736518435877,0.0823,94477.0,94459.0,0.00471688]
[1736518436126,0.211754,94449.0,94434.0,0.40025833]
[1736518436382,0.211727,94461.0,94460.0,0.00471503]
[1736518436594,0.12663246,94461.0,94434.0,0.18847233]
[1736518436800,0.10429976,94460.0,94430.0,0.211797]
[1736518437006,0.10429976,94460.0,94435.0,0.00476115]
[1736518437216,0.211765,94445.0,94425.0,0.361806]
[1736518437425,0.211716,94466.0,94416.0,0.18847233]
[1736518437426,0.211789,94434.0,94416.0,0.18847233]
[1736518437637,0.023,94432.0,94430.0,0.00477038]
[1736518437847,0.234797,94430.0,94416.0,0.18847233]
[1736518438063,0.33909676,94430.0,94416.0,0.18847233]
[1736518438282,0.211797,94430.0,94416.0,0.18847233]
[1736518438491,0.223397,94430.0,94416.0,0.18847233]
[1736518438715,0.223397,94430.0,94429.0,0.0051702]
[1736518438926,0.223397,94430.0,94429.0,0.0001702]
[1736518439157,0.213797,94430.0,94429.0,0.0001702]
[1736518439362,0.217797,94430.0,94429.0,0.0001702]
[1736518440255,0.35669676,94430.0,94429.0,0.0001702]
[1736518440676,0.43472414,94430.0,94429.0,0.0001702]
[1736518440883,0.35469676,94430.0,94429.0,0.0001702]
[1736518441102,0.211784,94436.0,94429.0,0.0001702]
[1736518441331,0.006,94430.0,94429.0,0.0001702]
[1736518441829,0.211797,94430.0,94429.0,0.0001702]
[1736518442038,0.217797,94430.0,94429.0,0.0001702]
[1736518442493,0.004,94430.0,94405.0,0.211853]
[1736518442701,0.1,94454.0,94404.0,0.0001704]
[1736518442702,0.211755,94449.0,94406.0,0.18285877]
[1736518442914,0.0116,94452.0,94437.0,0.209781]
[1736518443129,0.21176,94447.0,94412.0,0.15]
[1736518443342,0.21176,94447.0,94407.0,0.10481284]
[1736518443343,0.21176,94447.0,94438.0,0.00475562]
[1736518443552,0.0116,94462.0,94430.0,0.211795]
[1736518443763,0.31602676,94461.0,94439.0,0.00475377]
[1736518443978,0.211698,94474.0,94450.0,0.21175]
[1736518444187,0.10429976,94473.0,94441.0,0.211772]
[1736518444417,0.211732,94460.0,94451.0,0.00473163]
[1736518444625,0.211714,94467.0,94445.0,0.211763]
[1736518444823,0.211714,94467.0,94455.0,0.21174]
[1736518445073,0.211714,94467.0,94455.0,0.20974]
[1736518445281,0.211702,94473.0,94456.0,0.00472241]
[1736518445702,0.211714,94467.0,94455.0,0.211739]
[1736518445910,0.0116,94477.0,94457.0,0.00472057]
[1736518446115,0.211698,94474.0,94458.0,0.211734]
[1736518446320,0.10429976,94477.0,94458.0,0.211734]
[1736518446527,0.211708,94470.0,94458.0,0.21645272]
[1736518447155,0.211716,94466.0,94458.0,0.00471872]
[1736518447372,0.004,94467.0,94459.0,0.211732]
[1736518447574,0.004,94467.0,94460.0,0.0211732]
[1736518447777,0.004,94467.0,94456.0,0.211736]
[1736518448198,0.211716,94466.0,94442.0,0.21177]
[1736518448400,0.423465,94459.0,94446.0,0.21176]
[1736518448604,0.004,94467.0,94442.0,0.21177]
[1736518448807,0.10429976,94466.0,94436.0,0.211783]
[1736518449028,0.21172,94464.0,94429.0,0.211799]
[1736518449267,0.10429976,94463.0,94420.0,0.19395176]
[1736518449477,0.211749,94452.0,94421.0,0.10535871]
[1736518449737,0.211739,94456.0,94440.0,0.211773]
[1736518449965,0.211739,94456.0,94441.0,0.0211773]
[1736518450194,0.211739,94456.0,94440.0,0.211773]
[1736518450397,0.211748,94452.0,94437.0,0.211779]
[1736518450574,0.211748,94452.0,94441.0,0.211771]
[1736518450775,0.211739,94456.0,94441.0,0.211771]
[1736518451012,0.0116,94464.0,94436.0,0.211781]
[1736518451189,0.10429976,94463.0,94431.0,0.211794]
[1736518451413,0.211729,94460.0,94432.0,0.10535863]
[1736518451612,0.0116,94464.0,94432.0,0.10429976]
[1736518451824,0.001,94463.0,94449.0,0.211754]
[1736518452025,0.001,94463.0,94433.0,0.2268]
[1736518452226,0.08826,94476.0,94451.0,0.211748]
[1736518452227,0.211701,94473.0,94451.0,0.211748]
[1736518452429,0.211718,94466.0,94451.0,0.211748]
[1736518452649,0.211718,94466.0,94456.0,0.05]
[1736518452859,0.001,94460.0,94456.0,0.05]
[1736518453238,0.21273,94460.0,94456.0,0.05]
[1736518453448,0.01307334,94460.0,94456.0,0.05]
[1736518453642,0.211732,94459.0,94456.0,0.05]
[1736518454645,0.211725,94462.0,94456.0,0.05]
[1736518455031,0.211707,94470.0,94456.0,0.05]
[1736518455475,0.001,94460.0,94456.0,0.05]
[1736518455905,0.21172,94465.0,94456.0,0.05]
[1736518456125,0.211719,94465.0,94456.0,0.05]
[1736518456552,0.1,94484.0,94456.0,0.05]
[1736518456760,0.211729,94461.0,94456.0,0.056]
[1736518457012,0.26627448,94483.0,94456.0,0.05]
[1736518457013,0.1,94482.0,94456.0,0.05]
[1736518457215,0.211709,94469.0,94456.0,0.05]
[1736518457555,0.10429976,94481.0,94456.0,0.05]
[1736518457759,0.023,94476.0,94456.0,0.05]
[1736518457956,0.2117,94473.0,94457.0,0.211736]
[1736518458279,0.211711,94469.0,94457.0,0.211736]
[1736518458435,0.211711,94469.0,94456.0,0.05]
[1736518458436,0.21172,94465.0,94456.0,0.05]
[1736518458667,0.211711,94469.0,94456.0,0.05]
[1736518458917,0.211705,94472.0,94457.0,0.211736]
[1736518459174,0.211698,94474.0,94461.0,0.211727]
[1736518459438,0.211708,94470.0,94458.0,0.211734]
[1736518459902,0.211709,94469.0,94457.0,0.211736]
[1736518460309,0.21172,94465.0,94456.0,0.05]
[1736518460514,0.211692,94477.0,94456.0,0.05]
[1736518460754,0.211713,94468.0,94456.0,0.051]
[1736518461092,0.211713,94468.0,94457.0,0.211736]
[1736518461897,0.01156,94488.0,94456.0,0.051]
[1736518462102,0.20429976,94487.0,94456.0,0.051]
[1736518462297,0.211716,94466.0,94456.0,0.051]
[1736518462605,0.211727,94461.0,94456.0,0.051]
[1736518463028,0.423456,94461.0,94456.0,0.051]
[1736518463219,0.52775576,94461.0,94456.0,0.051]
[1736518463423,0.423464,94459.0,94456.0,0.051]
[1736518463604,0.10429976,94458.0,94456.0,0.051]
[1736518463805,0.03311574,94457.0,94456.0,0.05]
[1736518464040,0.3491515,94457.0,94456.0,0.05]
[1736518464295,0.3721515,94457.0,94456.0,0.05]
[1736518464756,0.4721515,94457.0,94456.0,0.05]
[1736518465477,0.211797,94430.0,94417.0,0.0001702]
[1736518466241,0.211786,94435.0,94417.0,0.0001702]
[1736518466644,0.211794,94432.0,94417.0,0.0001702]
[1736518467079,0.52788776,94432.0,94417.0,0.0001702]
[1736518467287,0.211813,94423.0,94395.0,0.18633293]
[1736518467488,0.023,94420.0,94395.0,0.18633293]
[1736518467809,0.10429976,94419.0,94396.0,0.00642244]
[1736518468020,0.211869,94398.0,94396.0,0.00642244]
[1736518468238,0.12729976,94397.0,94396.0,0.00642244]
[1736518468448,0.423746,94396.0,94373.0,0.23559041]
[1736518468652,0.211873,94396.0,94373.0,0.23559041]
[1736518468874,0.211873,94396.0,94373.0,0.211925]
[1736518469084,0.423747,94396.0,94373.0,0.211925]
[1736518469309,0.211877,94394.0,94372.0,0.0001704]
[1736518469528,0.211882,94392.0,94372.0,0.0001704]
[1736518469749,0.39067494,94392.0,94372.0,0.0001704]
[1736518469969,0.41367494,94392.0,94372.0,0.0001704]
[1736518470402,0.211882,94392.0,94372.0,0.0001704]
[1736518470665,0.31618176,94392.0,94372.0,0.0001704]
[1736518471153,0.33918176,94392.0,94372.0,0.0001704]
[1736518471609,0.34118176,94392.0,94372.0,0.0001704]
[1736518472065,0.35274176,94392.0,94372.0,0.0001704]
[1736518472305,0.43913578,94392.0,94372.0,0.0001704]
[1736518472553,0.023,94391.0,94362.0,0.0001704]
[1736518472786,0.211891,94388.0,94362.0,0.0001704]
[1736518473003,0.023,94386.0,94362.0,0.0001704]
[1736518473227,0.211898,94385.0,94367.0,0.211937]
[1736518473468,0.211884,94391.0,94363.0,0.01268112]
[1736518473674,0.211884,94391.0,94363.0,0.11698088]
[1736518473881,0.211884,94391.0,94371.0,0.211929]
[1736518474090,0.423793,94386.0,94364.0,0.42389]
[1736518474302,0.211896,94386.0,94369.0,0.211932]
[1736518474876,0.01156,94392.0,94366.0,0.21194]
[1736518475077,0.002,94391.0,94366.0,0.21194]
[1736518475275,0.211908,94381.0,94362.0,0.0001704]
[1736518475497,0.211908,94381.0,94363.0,0.211947]
[1736518475701,0.10429976,94390.0,94367.0,0.211938]
[1736518475901,0.001,94386.0,94368.0,0.211936]
[1736518476127,0.001,94386.0,94362.0,0.0001704]
[1736518476333,0.10429976,94385.0,94362.0,0.0001704]
[1736518476681,0.211921,94375.0,94362.0,0.0001704]
[1736518476899,0.2119,94384.0,94363.0,0.22462812]
[1736518477112,0.001,94386.0,94363.0,0.01923206]
[1736518477323,0.01156,94392.0,94371.0,0.423856]
[1736518477531,0.11585976,94392.0,94371.0,0.423856]
[1736518477770,0.211884,94391.0,94371.0,0.423856]
[1736518477975,0.11585976,94392.0,94362.0,0.0001704]
[1736518477976,0.211943,94365.0,94362.0,0.0001704]
[1736518478188,0.211936,94368.0,94363.0,0.001]
[1736518478398,0.01156,94375.0,94363.0,0.001]
[1736518478608,0.211889,94389.0,94369.0,0.211933]
[1736518479028,0.211898,94385.0,94370.0,0.00652368]
[1736518479237,0.211905,94382.0,94370.0,0.00652368]
[1736518479453,0.211905,94382.0,94367.0,0.211937]
[1736518479678,0.023,94393.0,94366.0,0.211939]
[1736518479860,0.01156,94390.0,94368.0,0.00653147]
[1736518480135,0.01156,94390.0,94362.0,0.0001704]
[1736518480136,0.211903,94383.0,94367.0,0.00653536]
[1736518480371,0.211913,94379.0,94369.0,0.00652757]
[1736518480560,0.211913,94379.0,94362.0,0.2121184]
[1736518480561,0.211913,94379.0,94370.0,0.001]
[1736518481118,0.211903,94383.0,94370.0,0.001]
[1736518481119,0.211904,94382.0,94370.0,0.001]
[1736518481316,0.211903,94383.0,94362.0,0.0001704]
[1736518481517,0.211943,94365.0,94362.0,0.0001704]
[1736518481718,0.12549406,94364.0,94363.0,0.00655094]
[1736518481923,0.211947,94363.0,94362.0,0.0001704]
[1736518482289,0.31624676,94363.0,94362.0,0.0001704]
[1736518482996,0.33924676,94363.0,94362.0,0.0001704]
[1736518483213,0.311951,94361.0,94360.0,8e-07]
[1736518483439,0.53930427,94361.0,94360.0,8e-07]
[1736518483677,0.43930427,94361.0,94360.0,8e-07]
[1736518484531,0.44830427,94361.0,94360.0,0.0010008]
[1736518484736,0.1,94358.0,94357.0,4e-07]
[1736518484942,0.22729976,94358.0,94357.0,4e-07]
[1736518485144,0.33159952,94358.0,94357.0,4e-07]
[1736518485559,0.23159952,94358.0,94357.0,4e-07]
[1736518485973,0.48159952,94358.0,94357.0,4e-07]
[1736518486175,0.38159952,94358.0,94357.0,4e-07]
[1736518486375,0.39311952,94358.0,94357.0,4e-07]
[1736518486580,0.49311952,94358.0,94357.0,4e-07]
[1736518486823,0.40111952,94358.0,94357.0,0.0010004]
[1736518487031,0.39311952,94358.0,94357.0,4e-07]
[1736518487490,0.39311952,94358.0,94322.0,0.0001704]
[1736518487491,0.023,94355.0,94314.0,0.212057]
[1736518487616,0.023,94355.0,94310.0,0.000898]
[1736518487617,0.0791,94348.0,94310.0,0.000898]
[1736518487823,0.212039,94322.0,94310.0,0.000898]
[1736518488022,0.212017,94332.0,94310.0,0.000898]
[1736518488452,0.212017,94332.0,94313.0,0.212059]
[1736518488660,0.01152,94333.0,94317.0,0.212049]
[1736518488862,0.112,94358.0,94327.0,0.212026]
[1736518488863,0.008,94358.0,94327.0,0.212026]
[1736518489061,0.10429976,94346.0,94317.0,0.21205]
[1736518489336,0.01152,94345.0,94313.0,0.212059]
[1736518489536,0.10429976,94344.0,94318.0,0.212046]
[1736518490148,0.212006,94337.0,94318.0,0.212046]
[1736518490376,0.212017,94333.0,94315.0,0.212055]
[1736518490550,0.10429976,94344.0,94319.0,0.212045]
[1736518490755,0.03162828,94343.0,94319.0,0.212045]
[1736518490935,0.13592804,94343.0,94319.0,0.212045]
[1736518491139,0.211994,94342.0,94325.0,0.212032]
[1736518491337,0.03162828,94343.0,94321.0,0.212039]
[1736518491567,0.21199,94345.0,94322.0,0.10535986]
[1736518491781,0.211992,94343.0,94323.0,0.01053599]
[1736518491985,0.211992,94343.0,94324.0,0.212035]
[1736518492212,0.10429976,94342.0,94324.0,0.00756944]
[1736518492420,0.212026,94329.0,94312.0,0.212062]
[1736518492656,0.212026,94329.0,94325.0,0.00756329]
[1736518493098,0.212026,94329.0,94312.0,0.212062]
[1736518493503,0.001,94329.0,94314.0,0.212057]
[1736518493709,0.001,94329.0,94328.0,0.212026]
[1736518493917,0.001,94343.0,94315.0,0.10429976]
[1736518494324,0.001,94343.0,94313.0,0.00763706]
[1736518494325,0.001,94329.0,94321.0,0.21204]
[1736518494534,0.10429976,94342.0,94316.0,0.01765987]
[1736518494747,0.424026,94334.0,94314.0,0.212057]
[1736518495016,0.001,94329.0,94314.0,0.424114]
[1736518495225,0.001,94329.0,94313.0,0.00763706]
[1736518495434,0.212055,94315.0,94313.0,0.00763706]
[1736518495643,0.212051,94317.0,94313.0,0.00763706]
[1736518495877,0.212051,94317.0,94311.0,0.0001704]
[1736518496098,0.212062,94312.0,94311.0,0.0001704]
[1736518496290,0.023,94326.0,94311.0,0.0001704]
[1736518496430,0.023,94324.0,94311.0,0.0001704]
[1736518496663,0.212062,94312.0,94311.0,0.0001704]
[1736518497488,0.212057,94314.0,94311.0,0.0001704]
[1736518497818,0.212057,94314.0,94313.0,0.001]
[1736518498019,0.212057,94314.0,94311.0,0.0001704]
[1736518498146,0.003,94312.0,94311.0,0.0001704]
[1736518498341,0.005,94312.0,94311.0,0.0001704]
[1736518498592,0.002,94312.0,94311.0,0.0001704]
[1736518498808,0.212057,94314.0,94311.0,0.0001704]
[1736518498809,0.023,94313.0,94311.0,0.0001704]
[1736518499013,0.33936176,94312.0,94311.0,0.0001704]
[1736518500565,0.34436176,94312.0,94311.0,0.0001704]
[1736518500978,0.33936176,94312.0,94311.0,0.0001704]
[1736518501615,0.36108926,94312.0,94311.0,0.0001704]
[1736518501827,0.220062,94312.0,94311.0,0.0001704]
[1736518502253,0.006,94312.0,94311.0,0.0001704]
[1736518502517,0.008,94312.0,94309.0,0.212068]
[1736518502727,0.008,94312.0,94306.0,0.0499]
[1736518502728,0.008,94312.0,94308.0,0.21207]
[1736518502939,0.008,94312.0,94310.0,0.00743101]
[1736518503111,0.002,94312.0,94310.0,0.00743101]
[1736518503358,0.006,94312.0,94310.0,0.00743101]
[1736518503754,0.002,94312.0,94310.0,0.00743101]
[1736518503925,0.001,94312.0,94310.0,0.00743101]
[1736518504137,0.001,94312.0,94311.0,0.003]
[1736518504341,0.02882549,94312.0,94311.0,0.00290665]
[1736518504666,0.02882549,94312.0,94300.0,0.09712884]
[1736518504667,0.212086,94301.0,94300.0,0.09712884]
[1736518504842,0.35090576,94301.0,94300.0,0.09712884]
[1736518505075,0.212086,94301.0,94300.0,0.09712884]
[1736518505278,0.0497,94328.0,94300.0,0.09712884]
[1736518505476,0.212062,94312.0,94300.0,0.09712884]
[1736518505705,0.21208,94304.0,94300.0,0.09712884]
[1736518505860,0.001,94301.0,94300.0,0.09712884]
[1736518507721,0.212082,94303.0,94300.0,0.09712884]
[1736518507930,0.02340088,94327.0,94300.0,0.09712884]
[1736518508148,0.02340088,94327.0,94300.0,0.30921684]
[1736518508149,0.002,94312.0,94300.0,0.30921684]
[1736518508299,0.002,94312.0,94301.0,0.00785293]
[1736518508520,0.0134148,94327.0,94301.0,0.00785293]
[1736518508521,0.00106044,94321.0,94303.0,0.212081]
[1736518508720,0.02265062,94320.0,94301.0,0.00679261]
[1736518508918,0.02265062,94320.0,94300.0,0.09712884]
[1736518508919,0.212068,94310.0,94304.0,0.0067809]
[1736518509123,0.00106044,94309.0,94302.0,0.00678871]
[1736518509359,0.00106044,94309.0,94300.0,0.09712884]
[1736518509360,0.21312844,94309.0,94300.0,0.09712884]
[1736518509528,0.212046,94319.0,94303.0,0.00678481]
[1736518509698,0.212046,94319.0,94300.0,0.09712884]
[1736518509699,0.21205,94317.0,94304.0,0.21208]
[1736518509907,0.212055,94315.0,94301.0,0.214085]
[1736518510144,0.00106044,94314.0,94305.0,0.006777]
[1736518510364,0.212031,94326.0,94305.0,0.212077]
[1736518510540,0.04489828,94325.0,94316.0,0.212052]
[1736518510759,0.00106044,94324.0,94312.0,0.21206]
[1736518510964,0.01152,94333.0,94317.0,0.00673021]
[1736518510965,0.00106044,94327.0,94317.0,0.00673021]
[1736518511163,0.212045,94320.0,94317.0,0.00673021]
[1736518511338,0.212086,94301.0,94296.0,0.0001704]
[1736518511780,0.212086,94301.0,94300.0,0.10392535]
[1736518511998,0.27779873,94301.0,94300.0,0.09712884]
[1736518512881,0.27779873,94301.0,94300.0,0.09912884]
[1736518513313,0.212086,94301.0,94300.0,0.09912884]
[1736518513515,0.001,94301.0,94300.0,0.09912884]
[1736518513736,0.01148,94312.0,94304.0,0.212078]
[1736518513940,0.01148,94312.0,94301.0,0.212086]
[1736518514139,0.01148,94312.0,94305.0,0.006777]
[1736518514357,0.01148,94312.0,94300.0,0.17342884]
[1736518514556,0.00106044,94311.0,94306.0,0.0067731]
[1736518514764,0.00106044,94311.0,94301.0,0.212086]
[1736518514967,0.00106044,94311.0,94307.0,0.0067692]
[1736518515148,0.00106044,94311.0,94301.0,0.212086]
[1736518515317,0.00106044,94314.0,94308.0,0.00676531]
[1736518515527,0.00106044,94314.0,94301.0,0.212086]
[1736518515747,0.21208,94304.0,94302.0,0.00678871]
[1736518516085,0.1053602,94303.0,94302.0,0.00678871]
[1736518516311,0.1053602,94303.0,94300.0,0.09712884]
[1736518516312,0.212084,94302.0,94300.0,0.05203545]
[1736518516538,0.1053602,94301.0,94300.0,0.00139457]
[1736518516793,0.21352543,94301.0,94300.0,0.00139457]
[1736518517006,0.21246499,94301.0,94300.0,0.00139457]
[1736518517419,0.10429976,94301.0,94277.0,0.18594378]
[1736518517805,0.00106044,94310.0,94278.0,0.10429976]
[1736518518007,0.001,94304.0,94280.0,0.212133]
[1736518518213,0.212093,94299.0,94281.0,0.212131]
[1736518518420,0.212095,94297.0,94280.0,0.212134]
[1736518518847,0.212141,94277.0,94273.0,0.0001706]
[1736518519051,0.212145,94275.0,94273.0,0.0001706]
[1736518519259,0.1053602,94274.0,94273.0,0.0001706]
[1736518519673,0.00106044,94274.0,94273.0,0.0001706]
[1736518520697,0.06595628,94274.0,94273.0,0.0001706]
[1736518521357,0.00106044,94274.0,94273.0,0.0001706]
[1736518521992,0.212145,94275.0,94273.0,0.0001706]
[1736518522218,0.00106044,94274.0,94273.0,0.0001706]
[1736518522468,0.00106044,94274.0,94245.0,0.081]
[1736518522469,0.1083602,94274.0,94245.0,0.0768524]
[1736518522728,0.212164,94267.0,94246.0,0.21221]
[1736518522943,0.001,94274.0,94255.0,0.15]
[1736518523143,0.004,94274.0,94271.0,0.212153]
[1736518523384,0.001,94274.0,94273.0,0.212149]
[1736518523627,0.006,94274.0,94273.0,0.31644876]
[1736518523876,0.001,94274.0,94273.0,0.31644876]
[1736518524556,0.001,94274.0,94273.0,0.36584876]
[1736518524783,0.212058,94314.0,94273.0,0.15369976]
[1736518525011,0.212058,94314.0,94274.0,0.10429976]
[1736518525246,0.01148,94315.0,94275.0,0.15]
[1736518525552,0.01148,94315.0,94296.0,0.0756]
[1736518525771,0.44752874,94314.0,94298.0,0.212093]
[1736518525999,0.4464683,94314.0,94298.0,0.212093]
[1736518526229,0.00106044,94313.0,94298.0,0.212093]
[1736518526463,0.00106044,94313.0,94302.0,0.212083]
[1736518526691,0.212037,94323.0,94308.0,0.21207]
[1736518526961,0.02330698,94323.0,94312.0,0.21206]
[1736518527424,0.01016169,94338.0,94313.0,0.00106019]
[1736518527668,0.212008,94336.0,94313.0,0.00106019]
[1736518527908,0.212008,94336.0,94321.0,0.212041]
[1736518528163,0.00106044,94335.0,94321.0,0.212041]
[1736518528414,0.212003,94339.0,94322.0,0.00775868]
[1736518528672,0.05280851,94341.0,94322.0,0.00775868]
[1736518528673,0.212022,94330.0,94322.0,0.00775868]
[1736518528869,0.212032,94325.0,94322.0,0.00064652]
[1736518529078,0.212037,94323.0,94322.0,0.00064652]
[1736518529307,0.32133676,94323.0,94322.0,0.00064652]
[1736518529510,0.39702394,94323.0,94322.0,0.00064652]
[1736518529723,0.39202394,94323.0,94322.0,0.00064652]
[1736518529946,0.212037,94323.0,94322.0,0.00064652]
[1736518530155,0.212026,94328.0,94322.0,0.00064652]
[1736518530365,0.212037,94323.0,94322.0,0.00064652]
[1736518530613,0.31833676,94323.0,94322.0,0.00064652]
[1736518530820,0.39274708,94323.0,94322.0,0.00064652]
[1736518531452,0.39374708,94323.0,94322.0,0.00064652]
[1736518531633,0.001,94323.0,94322.0,0.00064652]
[1736518531868,0.001,94323.0,94322.0,0.0084052]
[1736518532077,0.001,94323.0,94322.0,0.00064652]
[1736518532283,0.004,94323.0,94322.0,0.0084052]
[1736518532507,0.211979,94349.0,94328.0,0.212026]
[1736518532712,0.001,94323.0,94322.0,0.0084052]
[1736518532927,0.001,94323.0,94322.0,0.11270496]
[1736518533179,0.0001706,94361.0,94323.0,0.3315]
[1736518533394,0.0001706,94361.0,94349.0,0.211978]
[1736518533604,0.0001706,94361.0,94349.0,0.336578]
[1736518534034,0.0001706,94361.0,94349.0,0.586578]
[1736518534463,6e-07,94361.0,94360.0,0.461954]
[1736518534678,6e-07,94361.0,94360.0,0.56625376]
[1736518534855,0.42368,94411.0,94372.0,0.211927]
[1736518535115,0.042447,94413.0,94360.0,0.31625376]
[1736518535116,0.211867,94399.0,94380.0,0.211909]
[1736518535325,0.29951465,94390.0,94349.0,0.1286]
[1736518535536,0.29951465,94380.0,94361.0,0.211949]
[1736518535743,0.29951465,94390.0,94371.0,0.211927]
[1736518535951,0.042456,94393.0,94372.0,0.00205957]
[1736518536124,0.211895,94387.0,94372.0,0.00791733]
[1736518536325,0.00106044,94386.0,94372.0,0.001]
[1736518536728,0.00106044,94386.0,94373.0,0.00691344]
[1736518537374,0.00106044,94386.0,94373.0,0.02879818]
[1736518537574,0.00106044,94386.0,94362.0,0.10429976]
[1736518537575,0.21188,94393.0,94379.0,0.21191]
[1736518537787,0.00106044,94392.0,94374.0,0.00690954]
[1736518537996,8.53e-05,94395.0,94384.0,0.2119]
[1736518538410,8.53e-05,94395.0,94385.0,0.00686671]
[1736518539026,8.53e-05,94395.0,94386.0,0.00050274]
[1736518539589,8.53e-05,94395.0,94391.0,0.423766]
[1736518539999,8.53e-05,94395.0,94392.0,0.00048927]
[1736518540574,8.53e-05,94395.0,94393.0,0.00732259]
[1736518540769,0.0010853,94395.0,94393.0,0.00732259]
[1736518541025,0.0010853,94395.0,94385.0,0.001]
[1736518541232,0.0010853,94395.0,94386.0,0.42379]
[1736518541430,0.0010853,94395.0,94394.0,0.00683167]
[1736518541807,0.0010853,94395.0,94392.0,0.002]
[1736518542013,8.53e-05,94395.0,94394.0,0.00683167]
[1736518542346,0.0010853,94395.0,94394.0,0.00683167]
[1736518542555,0.0010853,94395.0,94390.0,0.211884]
[1736518542764,8.53e-05,94395.0,94394.0,0.00683167]
[1736518542976,0.0010853,94395.0,94390.0,0.211885]
[1736518543206,8.53e-05,94395.0,94394.0,0.00683167]
[1736518543411,8.53e-05,94395.0,94390.0,0.42377]
[1736518543622,0.0010853,94395.0,94394.0,0.00683167]
[1736518543833,8.53e-05,94395.0,94387.0,0.211893]
[1736518544039,8.53e-05,94395.0,94391.0,0.21872535]
[1736518544247,8.53e-05,94395.0,94394.0,0.00683167]
[1736518544480,8.53e-05,94395.0,94394.0,0.002]
[1736518544694,8.53e-05,94395.0,94394.0,0.00883167]
[1736518544935,8.53e-05,94395.0,94394.0,0.00789099]
[1736518545174,8.53e-05,94395.0,94394.0,0.11219058]
[1736518545376,8.53e-05,94395.0,94394.0,0.11113143]
[1736518545586,8.53e-05,94395.0,94394.0,0.11219062]
[1736518545815,0.0010853,94395.0,94394.0,0.11219062]
[1736518546024,8.53e-05,94395.0,94394.0,0.11219062]
[1736518546238,8.53e-05,94395.0,94394.0,0.38285122]
[1736518546457,8.53e-05,94407.0,94398.0,0.1]
[1736518546670,8.53e-05,94407.0,94395.0,0.15]
[1736518546671,8.53e-05,94407.0,94406.0,0.21185]
[1736518546871,8.53e-05,94407.0,94406.0,0.31614976]
[1736518547287,8.53e-05,94407.0,94406.0,0.32293473]
[1736518547491,8.53e-05,94407.0,94406.0,0.42293473]
[1736518547909,8.53e-05,94407.0,94406.0,0.70513473]
[1736518548119,0.0001706,94410.0,94409.0,0.361844]
[1736518548363,0.0001706,94410.0,94409.0,0.46614376]
[1736518548558,0.0001706,94410.0,94409.0,0.00677329]
[1736518548994,0.0001706,94410.0,94409.0,0.10429976]
[1736518549192,0.0001706,94410.0,94409.0,0.11213218]
[1736518549434,0.0001706,94410.0,94409.0,0.11107305]
[1736518549709,0.0001706,94410.0,94409.0,0.00677329]
[1736518549942,0.0001706,94410.0,94406.0,0.009]
[1736518550197,0.2120116,94410.0,94409.0,0.01177329]
[1736518550446,0.2120116,94410.0,94409.0,0.005]
[1736518550667,0.2120116,94410.0,94409.0,0.009]
[1736518550668,0.2343188,94410.0,94409.0,0.009]
[1736518550897,0.211852,94406.0,94387.0,0.211893]
[1736518551130,0.0011706,94410.0,94388.0,0.10535911]
[1736518551344,0.21290444,94409.0,94388.0,0.10535911]
[1736518551554,0.211844,94409.0,94394.0,0.211876]
[1736518551755,0.211844,94409.0,94388.0,0.10535911]
[1736518551756,0.0021706,94410.0,94395.0,0.10535904]
[1736518551968,0.0021706,94410.0,94405.0,0.211851]
[1736518552188,0.0021706,94410.0,94407.0,0.211847]
[1736518552594,0.0021706,94410.0,94408.0,0.00677718]
[1736518553079,0.01027578,94426.0,94408.0,0.00677718]
[1736518553080,8.52e-05,94430.0,94409.0,0.10429976]
[1736518553290,8.52e-05,94430.0,94425.0,0.211808]
[1736518553498,8.52e-05,94430.0,94427.0,0.211803]
[1736518553700,8.52e-05,94430.0,94428.0,0.00105889]
[1736518553881,8.52e-05,94430.0,94428.0,0.00775826]
[1736518554086,8.52e-05,94430.0,94429.0,0.31609876]
[1736518554303,8.52e-05,94430.0,94429.0,0.33446436]
[1736518554715,0.1,94525.0,94459.0,0.1]
[1736518554929,0.0753,94527.0,94480.0,0.211685]
[1736518554930,0.0001704,94505.0,94480.0,0.211685]
[1736518555134,0.0001704,94505.0,94480.0,0.31598476]
[1736518555380,0.0001704,94505.0,94480.0,1.84827755]
[1736518556302,0.29968545,94490.0,94456.0,0.0476]
[1736518556519,8.52e-05,94448.0,94447.0,0.211758]
[1736518556732,8.52e-05,94448.0,94447.0,0.31605776]
[1736518557361,8.52e-05,94448.0,94447.0,0.56605776]
[1736518557576,0.0001708,94481.0,94453.0,0.15]
[1736518557792,0.0001708,94481.0,94480.0,0.211685]
[1736518558423,0.0001708,94481.0,94480.0,0.31598476]
[1736518558658,0.0001708,94481.0,94480.0,0.39128476]
[1736518558861,0.0001708,94481.0,94480.0,0.54128476]
[1736518559040,0.0001708,94481.0,94480.0,0.64128476]
[1736518559484,0.0001708,94490.0,94486.0,0.361671]
[1736518559660,0.0001708,94490.0,94486.0,0.46597076]
[1736518560631,0.0001708,94490.0,94486.0,0.56597076]
[1736518560834,3e-07,94487.0,94486.0,0.57497076]
[1736518561059,3e-07,94487.0,94486.0,0.66597076]
[1736518561266,1e-07,94490.0,94489.0,0.1]
[1736518561559,0.01404683,94540.0,94539.0,0.211552]
[1736518561786,0.01404683,94540.0,94535.0,0.211559]
[1736518561995,0.01404683,94540.0,94535.0,0.42312]
[1736518562209,0.01404683,94540.0,94537.0,0.211557]
[1736518562843,0.211555,94538.0,94489.0,0.1]
[1736518563053,0.211559,94536.0,94490.0,0.10429976]
[1736518563318,0.13729032,94535.0,94507.0,0.211622]
[1736518563611,0.211564,94534.0,94492.0,0.211658]
[1736518563852,0.02432739,94540.0,94491.0,0.01233577]
[1736518563853,0.42308209,94524.0,94505.0,0.211627]
[1736518564333,0.21149409,94524.0,94509.0,0.211617]
[1736518564573,0.01404683,94540.0,94510.0,0.10535784]
[1736518564809,0.01404683,94540.0,94510.0,0.10429976]
[1736518565054,0.10429976,94539.0,94495.0,0.00105798]
[1736518565307,0.10429976,94539.0,94476.0,0.0455]
[1736518565308,0.211629,94505.0,94476.0,0.0455]